fUST/lending_fUST_20240918
["ID","MTS","AMOUNT","RATE_DAILY","PERIOD"]
[338440067,1726641042301,-1567.22,0.00019178,2]
[338440068,1726641042310,-151.0,0.00019178,2]
[338440069,1726641042319,-1583.15,0.00019178,2]
[338440070,1726641042329,-500.0,0.00019178,2]
[338440071,1726641042338,-500.0,0.00019178,2]
[338440072,1726641042347,-500.0,0.00019178,2]
[338440073,1726641042357,-500.0,0.00019178,2]
[338440074,1726641042366,-500.0,0.00019178,2]
[338440075,1726641042375,-500.0,0.00019178,2]
[338440076,1726641042385,-500.0,0.00019178,2]
[338440077,1726641042397,-1566.99,0.00019178,2]
[338440078,1726641042406,-500.0,0.00019178,2]
[338440079,1726641042415,-566.01,0.00019178,2]
[338440080,1726641042425,-500.0,0.00019178,2]
[338440081,1726641042434,-500.0,0.00019178,2]
[338440082,1726641042444,-500.0,0.00019178,2]
[338440083,1726641042453,-500.0,0.00019178,2]
[338440084,1726641042463,-1088.76,0.00019178,2]
[338440085,1726641042472,-500.0,0.00019178,2]
[338440086,1726641042482,-500.0,0.00019178,2]
[338440087,1726641042492,-858.06,0.00019178,2]
[338440088,1726641042504,-500.0,0.00019178,2]
[338440089,1726641042515,-500.0,0.00019178,2]
[338440090,1726641042526,-500.0,0.00019178,2]
[338440091,1726641042537,-500.0,0.00019178,2]
[338440092,1726641042547,-500.0,0.00019178,2]
[338440093,1726641042558,-500.0,0.00019178,2]
[338440094,1726641042569,-622.45,0.00019178,2]
[338440095,1726641042578,-500.0,0.00019178,2]
[338440096,1726641042590,-158.89598799,0.00019178,2]
[338440097,1726641042601,-500.0,0.00019178,2]
[338440098,1726641042613,-2200.47,0.00019178,2]
[338440099,1726641042625,-163.61183862,0.00019178,2]
[338440100,1726641042634,-500.0,0.00019178,2]
[338440101,1726641042643,-500.0,0.00019178,2]
[338440102,1726641042653,-500.0,0.00019178,2]
[338440103,1726641042663,-500.0,0.00019178,2]
[338440104,1726641042674,-500.0,0.00019178,2]
[338440105,1726641042684,-500.0,0.00019178,2]
[338440106,1726641042694,-1088.13,0.00019178,2]
[338440107,1726641042705,-2529.1,0.00019178,2]
[338440108,1726641042715,-703.2,0.00019178,2]
[338440109,1726641042727,-2690.53,0.00019178,2]
[338440110,1726641042739,-501.0258903,0.00019178,2]
[338440111,1726641042752,-500.0,0.00019178,2]
[338440112,1726641042762,-501.35,0.00019178,2]
[338440113,1726641042772,-520.74405636,0.00019178,2]
[338440114,1726641042785,-500.0,0.00019178,2]
[338440115,1726641042798,-4139.49,0.00019178,2]
[338440116,1726641042809,-500.0,0.00019178,2]
[338440117,1726641042823,-500.0,0.00019178,2]
[338440118,1726641042835,-500.0,0.00019178,2]
[338440119,1726641042845,-1333.34,0.00019178,2]
[338440120,1726641042855,-801.17,0.00019178,2]
[338440122,1726641042866,-2103.67,0.00019178,2]
[338440124,1726641042875,-500.0,0.00019178,2]
[338440126,1726641042886,-1054.0,0.00019178,2]
[338440127,1726641042895,-2033.2,0.00019178,2]
[338440128,1726641042905,-500.0,0.00019178,2]
[338440129,1726641042915,-500.0,0.00019178,2]
[338440130,1726641042926,-592.82,0.00019178,2]
[338440131,1726641042936,-1245.85,0.00019178,2]
[338440132,1726641042946,-247.6,0.00019178,2]
[338440133,1726641042956,-621.74,0.00019178,2]
[338440134,1726641042967,-500.0,0.00019178,2]
[338440135,1726641042978,-500.0,0.00019178,2]
[338440136,1726641042988,-1206.65,0.00019178,2]
[338440137,1726641042999,-500.0,0.00019178,2]
[338440138,1726641043009,-453.65675514,0.00019178,2]
[338440139,1726641043019,-500.0,0.00019178,2]
[338440140,1726641043030,-1480.75,0.00019178,2]
[338440141,1726641043040,-500.68225009,0.00019178,2]
[338440142,1726641043050,-500.0,0.00019178,2]
[338440143,1726641043061,-1259.4,0.00019178,2]
[338440144,1726641043072,-500.0,0.00019178,2]
[338440145,1726641043083,-500.0,0.00019178,2]
[338440146,1726641043095,-500.0,0.00019178,2]
[338440147,1726641043107,-2622.57,0.00019178,2]
[338440148,1726641043118,-506.91216179,0.00019178,2]
[338440149,1726641043129,-1095.69,0.00019178,2]
[338440150,1726641043140,-500.0,0.00019178,2]
[338440151,1726641043151,-500.0,0.00019178,2]
[338440152,1726641043165,-500.0,0.00019178,2]
[338440153,1726641043175,-500.0,0.00019178,2]
[338440154,1726641043186,-500.0,0.00019178,2]
[338440156,1726641043197,-500.0,0.00019178,2]
[338440157,1726641043208,-554.19,0.00019178,2]
[338440158,1726641043226,-500.0,0.00019178,2]
[338440159,1726641043245,-500.0,0.00019178,2]
[338440160,1726641043265,-500.0,0.00019178,2]
[338440161,1726641043426,-500.0,0.00019178,2]
[338440162,1726641043436,-894.17,0.00019178,2]
[338440163,1726641043447,-500.0,0.00019178,2]
[338440164,1726641043458,-500.0,0.00019178,2]
[338440165,1726641043470,-500.0,0.00019178,2]
[338440166,1726641043481,-500.0,0.00019178,2]
[338440167,1726641043491,-500.0,0.00019178,2]
[338440168,1726641043501,-500.0,0.00019178,2]
[338440169,1726641043511,-500.0,0.00019178,2]
[338440170,1726641043522,-500.0,0.00019178,2]
[338440171,1726641043532,-500.0,0.00019178,2]
[338440172,1726641043543,-500.0,0.00019178,2]
[338440173,1726641043554,-500.0,0.00019178,2]
[338440174,1726641043565,-500.0,0.00019178,2]
[338440175,1726641043575,-500.0,0.00019178,2]
[338440177,1726641043585,-500.0,0.00019178,2]
[338440178,1726641043596,-500.0,0.00019178,2]
[338440179,1726641043606,-500.0,0.00019178,2]
[338440180,1726641043617,-500.0,0.00019178,2]
[338440181,1726641043627,-500.0,0.00019178,2]
[338440182,1726641043637,-500.0,0.00019178,2]
[338440183,1726641043647,-500.0,0.00019178,2]
[338440184,1726641043657,-500.0,0.00019178,2]
[338440185,1726641043668,-500.0,0.00019178,2]
[338440186,1726641043678,-1746.98,0.00019178,2]
[338440187,1726641043688,-391.66560742,0.00019178,2]
[338440188,1726641043697,-865.84,0.00019178,2]
[338440189,1726641043707,-500.0,0.00019178,2]
[338440190,1726641043716,-1711.21,0.00019178,2]
[338440191,1726641043725,-500.0,0.00019178,2]
[338440192,1726641043737,-309.0,0.00019178,2]
[338440193,1726641043748,-594.14,0.00019178,2]
[338440194,1726641043758,-1492.43,0.00019178,2]
[338440195,1726641043768,-581.1,0.00019178,2]
[338440196,1726641043778,-3535.4,0.00019178,2]
[338440197,1726641043788,-151.0,0.00019178,2]
[338440198,1726641043798,-1319.81,0.00019178,2]
[338440199,1726641043808,-151.0,0.00019178,2]
[338440200,1726641043818,-500.0,0.00019178,2]
[338440201,1726641043827,-500.0,0.00019178,2]
[338440202,1726641043836,-776.41,0.00019178,2]
[338440203,1726641043846,-3721.54,0.00019178,2]
[338440204,1726641043855,-500.0,0.00019178,2]
[338440205,1726641043864,-151.0,0.00019178,2]
[338440206,1726641043873,-1531.98,0.00019178,2]
[338440207,1726641043882,-110.18686074,0.00019178,2]
[338440210,1726641044297,-40.81313926,0.00019178,2]
[338440212,1726641044307,-560.03,0.00019178,2]
[338440214,1726641044316,-500.0,0.00019178,2]
[338440215,1726641044325,-555.36,0.00019178,2]
[338440217,1726641044334,-650.5,0.00019178,2]
[338440219,1726641044344,-1466.0,0.00019178,2]
[338440221,1726641044353,-500.0,0.00019178,2]
[338440223,1726641044363,-500.0,0.00019178,2]
[338440224,1726641044372,-500.0,0.00019178,2]
[338440225,1726641044381,-500.0,0.00019178,2]
[338440226,1726641044395,-500.0,0.00019178,2]
[338440227,1726641044404,-500.0,0.00019178,2]
[338440228,1726641044413,-500.0,0.00019178,2]
[338440230,1726641044423,-507.97,0.00019178,2]
[338440232,1726641044432,-545.13,0.00019178,2]
[338440233,1726641044441,-545.13,0.00019178,2]
[338440235,1726641044451,-545.13,0.00019178,2]
[338440237,1726641044460,-152.367596,0.00019178,2]
[338440238,1726641044470,-500.0,0.00019178,2]
[338440239,1726641044479,-545.13,0.00019178,2]
[338440240,1726641044489,-545.13,0.00019178,2]
[338440241,1726641044498,-500.0,0.00019178,2]
[338440242,1726641044507,-545.13,0.00019178,2]
[338440243,1726641044516,-545.13,0.00019178,2]
[338440244,1726641044525,-545.13,0.00019178,2]
[338440245,1726641044534,-545.13,0.00019178,2]
[338440246,1726641044543,-545.13,0.00019178,2]
[338440247,1726641044552,-545.13,0.00019178,2]
[338440248,1726641044567,-500.0,0.00019178,2]
[338440249,1726641044577,-545.13,0.00019178,2]
[338440251,1726641044586,-500.0,0.00019178,2]
[338440252,1726641044595,-545.13,0.00019178,2]
[338440253,1726641044605,-545.13,0.00019178,2]
[338440254,1726641044613,-545.13,0.00019178,2]
[338440255,1726641044623,-545.13,0.00019178,2]
[338440256,1726641044632,-545.13,0.00019178,2]
[338440257,1726641044641,-545.13,0.00019178,2]
[338440258,1726641044650,-545.13,0.00019178,2]
[338440259,1726641044659,-500.0,0.00019178,2]
[338440260,1726641044669,-545.13,0.00019178,2]
[338440261,1726641044678,-545.13,0.00019178,2]
[338440262,1726641044688,-545.13,0.00019178,2]
[338440263,1726641044697,-500.0,0.00019178,2]
[338440264,1726641044706,-545.13,0.00019178,2]
[338440265,1726641044715,-500.0,0.00019178,2]
[338440266,1726641044724,-545.18702501,0.00019178,2]
[338440267,1726641044733,-154.795383,0.00019178,2]
[338440268,1726641044742,-1647.55,0.00019178,2]
[338440269,1726641044752,-500.0,0.00019178,2]
[338440270,1726641044761,-1443.28,0.00019178,2]
[338440271,1726641044770,-551.4,0.00019178,2]
[338440272,1726641044780,-500.0,0.00019178,2]
[338440274,1726641044790,-500.0,0.00019178,2]
[338440275,1726641044800,-500.0,0.00019178,2]
[338440276,1726641044810,-593.42,0.00019178,2]
[338440277,1726641044819,-1410.58,0.00019178,2]
[338440278,1726641044828,-500.37505608,0.00019178,2]
[338440279,1726641044838,-581.23,0.00019178,2]
[338440280,1726641044847,-500.0,0.00019178,2]
[338440281,1726641044857,-627.05274603,0.00019178,2]
[338440282,1726641044867,-1443.77,0.00019178,2]
[338440283,1726641044877,-500.73140609,0.00019178,2]
[338440284,1726641044887,-836.53,0.00019178,2]
[338440285,1726641044896,-500.0,0.00019178,2]
[338440286,1726641044906,-500.0,0.00019178,2]
[338440287,1726641044916,-182.84712699,0.00019178,2]
[338440288,1726641044926,-500.0,0.00019178,2]
[338440289,1726641044935,-500.0,0.00019178,2]
[338440290,1726641044944,-500.71233452,0.00019178,2]
[338440291,1726641044954,-972.65,0.00019178,2]
[338440292,1726641044963,-500.0,0.00019178,2]
[338440293,1726641044972,-538.67894368,0.00019178,2]
[338440294,1726641044982,-500.0,0.00019178,2]
[338440295,1726641044991,-500.0,0.00019178,2]
[338440296,1726641045000,-532.31977263,0.00019178,2]
[338440297,1726641045010,-796.92,0.00019178,2]
[338440298,1726641045019,-500.0,0.00019178,2]
[338440299,1726641045028,-500.0,0.00019178,2]
[338440300,1726641045037,-500.0,0.00019178,2]
[338440301,1726641045047,-500.0,0.00019178,2]
[338440302,1726641045056,-696.35,0.00019178,2]
[338440303,1726641045065,-500.0,0.00019178,2]
[338440304,1726641045075,-500.0,0.00019178,2]
[338440305,1726641045085,-500.0,0.00019178,2]
[338440306,1726641045094,-500.0,0.00019178,2]
[338440307,1726641045104,-1049.69,0.00019178,2]
[338440308,1726641045114,-903.73,0.00019178,2]
[338440309,1726641045123,-500.0,0.00019178,2]
[338440310,1726641045133,-2259.01,0.00019178,2]
[338440311,1726641045142,-500.0,0.00019178,2]
[338440312,1726641045152,-500.0,0.00019178,2]
[338440313,1726641045161,-1054.14,0.00019178,2]
[338440314,1726641045171,-500.0,0.00019178,2]
[338440315,1726641045181,-500.0,0.00019178,2]
[338440316,1726641045191,-500.0,0.00019178,2]
[338440317,1726641045202,-500.0,0.00019178,2]
[338440318,1726641045211,-2323.83,0.00019178,2]
[338440319,1726641045221,-1018.24,0.00019178,2]
[338440320,1726641045231,-2517.23,0.00019178,2]
[338440321,1726641045240,-538.05000947,0.00019178,2]
[338440322,1726641045249,-202.51131607,0.00019178,2]
[338440323,1726641045260,-500.0,0.00019178,2]
[338440324,1726641045270,-500.0,0.00019178,2]
[338440325,1726641045280,-670.11,0.00019178,2]
[338440326,1726641045289,-546.2,0.00019178,2]
[338440327,1726641045299,-1944.09,0.00019178,2]
[338440328,1726641045309,-825.1,0.00019178,2]
[338440329,1726641045318,-500.0,0.00019178,2]
[338440330,1726641045328,-500.0,0.00019178,2]
[338440331,1726641045337,-2706.18,0.00019178,2]
[338440332,1726641045346,-500.0,0.00019178,2]
[338440333,1726641045355,-500.0,0.00019178,2]
[338440334,1726641045365,-500.0,0.00019178,2]
[338440335,1726641045374,-500.0,0.00019178,2]
[338440336,1726641045384,-500.0,0.00019178,2]
[338440337,1726641045395,-500.0,0.00019178,2]
[338440338,1726641045404,-931.96,0.00019178,2]
[338440339,1726641045413,-500.0,0.00019178,2]
[338440340,1726641045422,-506.5322537,0.00019178,2]
[338440341,1726641045431,-500.0,0.00019178,2]
[338440342,1726641045441,-500.0,0.00019178,2]
[338440343,1726641045449,-3991.9,0.00019178,2]
[338440344,1726641045459,-1048.48,0.00019178,2]
[338440345,1726641045468,-939.24,0.00019178,2]
[338440346,1726641045477,-2596.4,0.00019178,2]
[338440347,1726641045487,-1555.32,0.00019178,2]
[338440348,1726641045496,-500.0,0.00019178,2]
[338440349,1726641045505,-2713.95,0.00019178,2]
[338440350,1726641045515,-221.740558,0.00019178,2]
[338440351,1726641045524,-221.740558,0.00019178,2]
[338440352,1726641045533,-500.0,0.00019178,2]
[338440353,1726641045542,-998.57,0.00019178,2]
[338440354,1726641045552,-500.0,0.00019178,2]
[338440355,1726641045562,-221.740558,0.00019178,2]
[338440356,1726641045571,-221.740558,0.00019178,2]
[338440357,1726641045581,-655.02,0.00019178,2]
[338440358,1726641045590,-500.0,0.00019178,2]
[338440359,1726641045599,-2381.06,0.00019178,2]
[338440360,1726641045608,-500.0,0.00019178,2]
[338440361,1726641045617,-500.0,0.00019178,2]
[338440362,1726641045626,-165.687022,0.00019178,2]
[338440363,1726641045636,-823.49,0.00019178,2]
[338440364,1726641045646,-3280.11,0.00019178,2]
[338440365,1726641045655,-4131.18,0.00019178,2]
[338440366,1726641045664,-500.0,0.00019178,2]
[338440367,1726641045674,-500.0,0.00019178,2]
[338440368,1726641045683,-500.0,0.00019178,2]
[338440369,1726641045693,-151.0,0.00019178,2]
[338440370,1726641045702,-242.731929,0.00019178,2]
[338440371,1726641045711,-848.5,0.00019178,2]
[338440372,1726641045721,-511.81,0.00019178,2]
[338440373,1726641045731,-391.84930936,0.00019178,2]
[338440374,1726641045740,-851.34,0.00019178,2]
[338440375,1726641045749,-1223.12,0.00019178,2]
[338440376,1726641045758,-664.22,0.00019178,2]
[338440377,1726641045768,-500.0,0.00019178,2]
[338440378,1726641045777,-568.5,0.00019178,2]
[338440380,1726641045786,-500.0,0.00019178,2]
[338440382,1726641045796,-500.0,0.00019178,2]
[338440383,1726641045806,-500.0,0.00019178,2]
[338440384,1726641045814,-619.87,0.00019178,2]
[338440385,1726641045823,-219.85106024,0.00019178,2]
[338440386,1726641045833,-1534.35,0.00019178,2]
[338440387,1726641045842,-562.52,0.00019178,2]
[338440388,1726641046001,-1881.49,0.00019178,2]
[338440389,1726641046011,-808.05,0.00019178,2]
[338440390,1726641046021,-500.0,0.00019178,2]
[338440391,1726641046031,-1254.62,0.00019178,2]
[338440392,1726641046041,-609.20268988,0.00019178,2]
[338440393,1726641046050,-771.92,0.00019178,2]
[338440394,1726641046060,-2776.44,0.00019178,2]
[338440395,1726641046070,-500.0,0.00019178,2]
[338440396,1726641046080,-500.0,0.00019178,2]
[338440397,1726641046089,-500.0,0.00019178,2]
[338440398,1726641046099,-500.0,0.00019178,2]
[338440399,1726641046109,-500.0,0.00019178,2]
[338440400,1726641046118,-500.0,0.00019178,2]
[338440401,1726641046129,-500.0,0.00019178,2]
[338440402,1726641046139,-500.0,0.00019178,2]
[338440403,1726641046149,-500.0,0.00019178,2]
[338440404,1726641046158,-500.0,0.00019178,2]
[338440405,1726641046168,-500.0,0.00019178,2]
[338440406,1726641046177,-500.0,0.00019178,2]
[338440407,1726641046188,-500.0,0.00019178,2]
[338440408,1726641046197,-500.0,0.00019178,2]
[338440409,1726641046207,-500.0,0.00019178,2]
[338440410,1726641046217,-500.0,0.00019178,2]
[338440411,1726641046226,-500.0,0.00019178,2]
[338440412,1726641046235,-572.91,0.00019178,2]
[338440413,1726641046245,-500.0,0.00019178,2]
[338440414,1726641046254,-500.0,0.00019178,2]
[338440415,1726641046264,-380.90304259,0.00019178,2]
[338440416,1726641046273,-1834.77,0.00019178,2]
[338440417,1726641046282,-500.0,0.00019178,2]
[338440418,1726641046292,-155.996601,0.00019178,2]
[338440419,1726641046302,-500.0,0.00019178,2]
[338440420,1726641046312,-500.0,0.00019178,2]
[338440421,1726641046321,-1871.85,0.00019178,2]
[338440422,1726641046331,-500.0,0.00019178,2]
[338440423,1726641046340,-842.38,0.00019178,2]
[338440424,1726641046350,-500.0,0.00019178,2]
[338440426,1726641046360,-655.63,0.00019178,2]
[338440428,1726641046370,-500.0,0.00019178,2]
[338440430,1726641046379,-500.0,0.00019178,2]
[338440431,1726641046390,-613.84,0.00019178,2]
[338440433,1726641046400,-500.0,0.00019178,2]
[338440434,1726641046410,-2430.11,0.00019178,2]
[338440435,1726641046420,-500.0,0.00019178,2]
[338440437,1726641046429,-500.0,0.00019178,2]
[338440438,1726641046439,-500.0,0.00019178,2]
[338440440,1726641046449,-500.0,0.00019178,2]
[338440442,1726641046458,-1383.65,0.00019178,2]
[338440443,1726641046468,-500.0,0.00019178,2]
[338440444,1726641046478,-151.0,0.00019178,2]
[338440445,1726641046487,-151.0,0.00019178,2]
[338440446,1726641046496,-151.0,0.00019178,2]
[338440447,1726641046506,-1753.96,0.00019178,2]
[338440448,1726641046514,-500.0,0.00019178,2]
[338440449,1726641046524,-500.0,0.00019178,2]
[338440450,1726641046533,-846.41,0.00019178,2]
[338440451,1726641046542,-151.0,0.00019178,2]
[338440452,1726641046551,-241.362484,0.00019178,2]
[338440453,1726641046562,-500.0,0.00019178,2]
[338440454,1726641046571,-509.80509317,0.00019178,2]
[338440455,1726641046581,-667.04,0.00019178,2]
[338440456,1726641046591,-509.93696176,0.00019178,2]
[338440457,1726641046600,-601.36,0.00019178,2]
[338440458,1726641046609,-842.22,0.00019178,2]
[338440459,1726641046618,-610.92049014,0.00019178,2]
[338440460,1726641046627,-500.0,0.00019178,2]
[338440461,1726641046637,-3647.47,0.00019178,2]
[338440462,1726641046646,-500.0,0.00019178,2]
[338440463,1726641046655,-3647.47,0.00019178,2]
[338440464,1726641046665,-500.0,0.00019178,2]
[338440465,1726641046674,-3647.47,0.00019178,2]
[338440466,1726641046684,-500.0,0.00019178,2]
[338440467,1726641046693,-3647.47,0.00019178,2]
[338440468,1726641046702,-3647.47,0.00019178,2]
[338440469,1726641046711,-575.09232438,0.00019178,2]
[338440470,1726641046721,-3647.47,0.00019178,2]
[338440471,1726641046730,-3647.47,0.00019178,2]
[338440472,1726641046739,-3647.47,0.00019178,2]
[338440473,1726641046749,-3647.47,0.00019178,2]
[338440474,1726641046758,-500.0,0.00019178,2]
[338440475,1726641046768,-3647.47,0.00019178,2]
[338440476,1726641046777,-3647.47,0.00019178,2]
[338440477,1726641046787,-500.0,0.00019178,2]
[338440478,1726641046797,-3647.47,0.00019178,2]
[338440479,1726641046807,-500.0,0.00019178,2]
[338440480,1726641046816,-2432.59,0.00019178,2]
[338440481,1726641046827,-3647.47,0.00019178,2]
[338440482,1726641046836,-500.0,0.00019178,2]
[338440483,1726641046845,-3647.47,0.00019178,2]
[338440484,1726641046854,-3647.47,0.00019178,2]
[338440485,1726641046864,-3647.47,0.00019178,2]
[338440486,1726641046873,-500.0,0.00019178,2]
[338440487,1726641046882,-3647.47,0.00019178,2]
[338440488,1726641046892,-3647.47,0.00019178,2]
[338440489,1726641046901,-3647.47,0.00019178,2]
[338440490,1726641046910,-500.0,0.00019178,2]
[338440491,1726641046920,-3647.47,0.00019178,2]
[338440492,1726641046930,-3647.47,0.00019178,2]
[338440493,1726641046939,-3647.47,0.00019178,2]
[338440494,1726641046948,-500.0,0.00019178,2]
[338440495,1726641046958,-3647.47,0.00019178,2]
[338440496,1726641046967,-3647.69948918,0.00019178,2]
[338440497,1726641046976,-500.0,0.00019178,2]
[338440498,1726641046986,-586.65,0.00019178,2]
[338440499,1726641046995,-1880.67,0.00019178,2]
[338440500,1726641047004,-866.34,0.00019178,2]
[338440501,1726641047014,-500.0,0.00019178,2]
[338440502,1726641047023,-500.0,0.00019178,2]
[338440503,1726641047032,-1139.94,0.00019178,2]
[338440504,1726641047042,-500.0,0.00019178,2]
[338440505,1726641047051,-791.28,0.00019178,2]
[338440506,1726641047061,-1776.55,0.00019178,2]
[338440507,1726641047071,-500.0,0.00019178,2]
[338440508,1726641047081,-500.0,0.00019178,2]
[338440509,1726641047090,-1955.05,0.00019178,2]
[338440510,1726641047100,-151.0,0.00019178,2]
[338440511,1726641047109,-500.0,0.00019178,2]
[338440512,1726641047119,-1104.16,0.00019178,2]
[338440513,1726641047128,-151.0,0.00019178,2]
[338440514,1726641047138,-500.0,0.00019178,2]
[338440515,1726641047148,-151.0,0.00019178,2]
[338440516,1726641047157,-250.0,0.00019178,2]
[338440517,1726641047167,-188.942496,0.00019178,2]
[338440518,1726641047177,-500.0,0.00019178,2]
[338440519,1726641047187,-188.942496,0.00019178,2]
[338440520,1726641047196,-188.942496,0.00019178,2]
[338440521,1726641047206,-673.86,0.00019178,2]
[338440522,1726641047215,-151.0,0.00019178,2]
[338440523,1726641047224,-151.0,0.00019178,2]
[338440524,1726641047234,-151.0,0.00019178,2]
[338440525,1726641047243,-188.942496,0.00019178,2]
[338440526,1726641047252,-500.0,0.00019178,2]
[338440527,1726641047261,-188.942496,0.00019178,2]
[338440528,1726641047270,-500.0,0.00019178,2]
[338440529,1726641047279,-188.942496,0.00019178,2]
[338440530,1726641047288,-1228.79,0.00019178,2]
[338440531,1726641047298,-583.27,0.00019178,2]
[338440532,1726641047308,-162.081552,0.00019178,2]
[338440533,1726641047317,-162.081552,0.00019178,2]
[338440534,1726641047327,-500.0,0.00019178,2]
[338440535,1726641047337,-162.081552,0.00019178,2]
[338440536,1726641047346,-630.09,0.00019178,2]
[338440537,1726641047355,-500.0,0.00019178,2]
[338440538,1726641047364,-500.0,0.00019178,2]
[338440539,1726641047373,-500.0,0.00019178,2]
[338440540,1726641047382,-500.0,0.00019178,2]
[338440541,1726641047394,-162.081552,0.00019178,2]
[338440542,1726641047403,-767.36,0.00019178,2]
[338440543,1726641047412,-162.081552,0.00019178,2]
[338440544,1726641047422,-162.081552,0.00019178,2]
[338440545,1726641047431,-648.06289456,0.00019178,2]
[338440546,1726641047440,-501.16309341,0.00019178,2]
[338440547,1726641047449,-151.0,0.00019178,2]
[338440548,1726641047458,-151.0,0.00019178,2]
[338440549,1726641047468,-151.0,0.00019178,2]
[338440550,1726641047478,-500.0,0.00019178,2]
[338440551,1726641047487,-714.57,0.00019178,2]
[338440552,1726641047496,-500.0,0.00019178,2]
[338440553,1726641047505,-523.7,0.00019178,2]
[338440554,1726641047514,-532.04378667,0.00019178,2]
[338440555,1726641047524,-500.0,0.00019178,2]
[338440556,1726641047533,-500.0,0.00019178,2]
[338440557,1726641047542,-500.0,0.00019178,2]
[338440558,1726641047551,-2185.81,0.00019178,2]
[338440559,1726641047561,-1138.81,0.00019178,2]
[338440560,1726641047570,-2185.81,0.00019178,2]
[338440561,1726641047580,-2185.81,0.00019178,2]
[338440562,1726641047589,-2185.81,0.00019178,2]
[338440563,1726641047598,-2185.81,0.00019178,2]
[338440564,1726641047607,-561.1,0.00019178,2]
[338440565,1726641047617,-2185.81,0.00019178,2]
[338440566,1726641047628,-2185.81,0.00019178,2]
[338440567,1726641047637,-2185.81,0.00019178,2]
[338440568,1726641047646,-2185.81,0.00019178,2]
[338440569,1726641047656,-2185.81,0.00019178,2]
[338440570,1726641047666,-2185.81,0.00019178,2]
[338440571,1726641047677,-2185.81,0.00019178,2]
[338440572,1726641047686,-2185.81,0.00019178,2]
[338440573,1726641047695,-2185.81,0.00019178,2]
[338440574,1726641047705,-2185.81,0.00019178,2]
[338440575,1726641047714,-2185.81,0.00019178,2]
[338440576,1726641047723,-2185.81,0.00019178,2]
[338440577,1726641047733,-2185.81,0.00019178,2]
[338440578,1726641047742,-2185.81,0.00019178,2]
[338440579,1726641047751,-2185.81,0.00019178,2]
[338440580,1726641047760,-2845.51,0.00019178,2]
[338440581,1726641047769,-2185.81,0.00019178,2]
[338440582,1726641047779,-2185.81,0.00019178,2]
[338440583,1726641047788,-2185.81,0.00019178,2]
[338440584,1726641047797,-2185.95938448,0.00019178,2]
[338440585,1726641047806,-500.0,0.00019178,2]
[338440586,1726641047815,-154.946537,0.00019178,2]
[338440587,1726641047825,-851.54,0.00019178,2]
[338440588,1726641047834,-500.0,0.00019178,2]
[338440589,1726641047844,-500.0,0.00019178,2]
[338440590,1726641047854,-500.0,0.00019178,2]
[338440591,1726641047863,-500.0,0.00019178,2]
[338440592,1726641047873,-500.0,0.00019178,2]
[338440593,1726641047882,-500.0,0.00019178,2]
[338440594,1726641047891,-1326.9,0.00019178,2]